[Event "WCCC G12 2019"]
[Site "Weifang"]
[Date "2019.08.29"]
[Round "8.3"]
[White "Enkhbolor Nyamdavaa"]
[Black "Savitha Shri B"]
[Result "0-1"]
[ECO "B95"]
[WhiteElo "1627"]
[BlackElo "2010"]
[Annotator "NA"]
[PlyCount "83"]
[EventDate "2019.08.21"]
[EventType "swiss"]
[EventCountry "CHN"]
[SourceTitle "playchess.com"]
[Source "ChessBase"]
[SourceQuality "1"]
[TimeControl "40/5400+30:1800+30"]

1. e4 {[%emt 0:00:00]} c5 {[%emt 0:00:00]} 2. Nf3 {[%emt 0:00:00]} d6 {[%emt 0:00:00]} 3. d4 {[%emt 0:00:00]} cxd4 {[%emt 0:00:00]} 4. Nxd4 {[%emt 0:00:00]} Nf6 {[%emt 0:00:00]} 5. Nc3 {[%emt 0:00:03]} a6 {[%emt 0:00:00]} 6. Bg5 {[%emt 0:00:06]} Nbd7 {[%emt 0:00:03]} 7. Qf3 {[%emt 0:00:08]} e6 {[%emt 0:01:46]} 8. O-O-O {[%emt 0:00:12]} Qc7 {[%emt 0:00:08]} 9. Qg3 {[%emt 0:00:17]} h6 {[%emt 0:01:47]} 10. Bxf6 {[%emt 0:03:03]} Nxf6 {[%emt 0:00:30]} 11. f4 {[%emt 0:00:09]} b6 {[%emt 0:18:35]} 12. Bd3 {[%emt 0:12:17]} Bb7 {[%emt 0:02:41]} 13. Qf3 {[%emt 0:04:33]} b5 {[%emt 0:08:15]} 14. g4 {[%emt 0:01:50]} Nd7 {[%emt 0:00:42]} 15. a3 {[%emt 0:04:58]} Qb6 {[%emt 0:06:34]} 16. Be2 {[%emt 0:05:09]} Rb8 {[%emt 0:07:30]} 17. Nb3 {[%emt 0:05:35]} Nc5 {[%emt 0:02:35]} 18. Nd2 {[%emt 0:02:56]} Bc6 {[%emt 0:01:26]} 19. Rhe1 {[%emt 0:07:53]} a5 {[%emt 0:01:15]} 20. Bf1 {[%emt 0:05:48]} Qb7 {[%emt 0:04:08]} 21. Nd5 {[%emt 0:02:27]} Bd7 {[%emt 0:04:30]} 22. Ne3 {[%emt 0:02:19]} Be7 {[%emt 0:00:30]} 23. Re2 {[%emt 0:07:46]} Bc6 {[%emt 0:01:52]} 24. Bg2 {[%emt 0:00:39]} Bf6 {[%emt 0:07:57]} 25. Nd5 {[%emt 0:01:47]} Bd8 {[%emt 0:01:17]} 26. h4 {[%emt 0:04:29]} Qa6 {[%emt 0:04:43]} 27. Bf1 {[%emt 0:03:40]} Bb7 {[%emt 0:10:20]} 28. Ne3 {[%emt 0:03:21]} Qc6 {[%emt 0:01:17]} 29. Bg2 {[%emt 0:01:37]} Rc8 {[%emt 0:02:37]} 30. Kb1 {[%emt 0:02:14]} Be7 {[%emt 0:01:55]} 31. Rde1 {[%emt 0:06:49]} Ba6 {[%emt 0:02:31]} 32. Nf5 {[%emt 0:06:42]} Bf8 {[%emt 0:00:58]} 33. Nd4 {[%emt 0:01:28]} Qb6 {[%emt 0:00:18]} 34. Re3 {[%emt 0:01:26]} Rb8 {[%emt 0:01:43]} 35. Qd1 {[%emt 0:02:25]} b4 {[%emt 0:00:41]} 36. Qc1 {[%emt 0:00:25]} Be7 {[%emt 0:03:38]} 37. e5 {[%emt 0:01:55]} d5 {[%emt 0:00:15]} 38. axb4 {[%emt 0:00:32]} axb4 {[%emt 0:00:08]} 39. N2b3 {[%emt 0:00:40]} Bc4 {[%emt 0:01:55]} 40. Qd2 {[%emt 0:00:00]} Qa6 {[%emt 0:00:00]} 41. Qf2 {[%emt 0:03:43]} Ra8 {[%emt 0:01:40]} 42. Kc1 {[%emt 0:00:44]} 0-1

[Event "WCCC G12 2019"]
[Site "Weifang"]
[Date "2019.08.29"]
[Round "8.4"]
[White "Nguyen, Le Cam Hien"]
[Black "Shvedova, Alexandra"]
[Result "0-1"]
[ECO "B92"]
[WhiteElo "1579"]
[BlackElo "1932"]
[Annotator "NA"]
[PlyCount "85"]
[EventDate "2019.08.21"]
[EventType "swiss"]
[EventCountry "CHN"]
[SourceTitle "playchess.com"]
[Source "ChessBase"]
[SourceQuality "1"]
[TimeControl "40/5400+30:1800+30"]

1. e4 {[%emt 0:00:00]} c5 {[%emt 0:00:00]} 2. Nf3 {[%emt 0:00:35]} d6 {[%emt 0:00:00]} 3. d4 {[%emt 0:00:13]} cxd4 {[%emt 0:00:00]} 4. Nxd4 {[%emt 0:00:06]} Nf6 {[%emt 0:00:00]} 5. Nc3 {[%emt 0:00:12]} a6 {[%emt 0:00:00]} 6. Be2 {[%emt 0:00:26]} Nbd7 {[%emt 0:00:19]} 7. f4 {[%emt 0:01:39]} e5 {[%emt 0:17:53]} 8. Nb3 {[%emt 0:04:25]} Be7 {[%emt 0:05:33]} 9. O-O {[%emt 0:01:38]} O-O {[%emt 0:00:23]} 10. Kh1 {[%emt 0:06:43]} b5 {[%emt 0:01:11]} 11. a3 {[%emt 0:00:30]} Bb7 {[%emt 0:00:21]} 12. Bf3 {[%emt 0:01:28]} Rc8 {[%emt 0:02:03]} 13. f5 {[%emt 0:03:24]} Rxc3 {[%emt 0:15:02]} 14. bxc3 {[%emt 0:00:10]} Nxe4 {[%emt 0:00:04]} 15. Qe1 {[%emt 0:03:55]} Ndf6 {[%emt 0:01:05]} 16. Bb2 {[%emt 0:05:07]} Qc8 {[%emt 0:07:34]} 17. a4 {[%emt 0:02:03]} Ng5 {[%emt 0:11:30]} 18. Bxb7 {[%emt 0:00:44]} Qxb7 {[%emt 0:00:02]} 19. axb5 {[%emt 0:00:48]} Qxb5 {[%emt 0:02:39]} 20. Ra5 {[%emt 0:11:07]} Qb6 {[%emt 0:00:45]} 21. Qf2 {[%emt 0:01:36]} Qc7 {[%emt 0:08:46]} 22. Rxa6 {[%emt 0:07:16]} Qc4 {[%emt 0:01:11]} 23. Raa1 {[%emt 0:01:12]} Ng4 {[%emt 0:01:57]} 24. Qe1 {[%emt 0:08:03]} Bd8 {[%emt 0:10:38]} 25. Nd2 {[%emt 0:04:24]} Qb5 {[%emt 0:02:45]} 26. Qg3 {[%emt 0:02:02]} Qxb2 {[%emt 0:03:14]} 27. Qxg4 {[%emt 0:00:19]} Qxc3 {[%emt 0:00:35]} 28. Ne4 {[%emt 0:01:17]} Qd4 {[%emt 0:01:13]} 29. Nf2 {[%emt 0:01:00]} Qxg4 {[%emt 0:01:49]} 30. Nxg4 {[%emt 0:00:06]} Bb6 {[%emt 0:00:17]} 31. Rad1 {[%emt 0:01:57]} Bc5 {[%emt 0:02:14]} 32. Rd5 {[%emt 0:09:32]} Ne4 {[%emt 0:01:01]} 33. Re1 {[%emt 0:01:41]} Ra8 {[%emt 0:01:18]} 34. g3 {[%emt 0:00:32]} Nf6 {[%emt 0:00:36]} 35. Nxf6+ {[%emt 0:00:45]} gxf6 {[%emt 0:00:02]} 36. Kg2 {[%emt 0:02:15]} Ra2 {[%emt 0:00:14]} 37. Re2 {[%emt 0:00:12]} Ra4 {[%emt 0:01:19]} 38. Kf3 {[%emt 0:01:22]} Rc4 {[%emt 0:00:11]} 39. Rd3 {[%emt 0:02:23]} Ra4 {[%emt 0:02:14]} 40. Re4 {[%emt 0:00:00]} Ra1 {[%emt 0:00:00]} 41. Kg4 {[%emt 0:06:29]} Rf1 {[%emt 0:03:11]} 42. c4 {[%emt 0:03:54]} Kg7 {[%emt 0:00:56]} 43. Rf3 {[%emt 0:01:17]} 0-1

[Event "WCCC G12 2019"]
[Site "Weifang"]
[Date "2019.08.29"]
[Round "8.5"]
[White "Manko, Mariya"]
[Black "Wang, Yuehan"]
[Result "1-0"]
[ECO "A37"]
[WhiteElo "1895"]
[BlackElo "1600"]
[Annotator "NA"]
[PlyCount "59"]
[EventDate "2019.08.21"]
[EventType "swiss"]
[EventCountry "CHN"]
[SourceTitle "playchess.com"]
[Source "ChessBase"]
[SourceQuality "1"]
[TimeControl "40/5400+30:1800+30"]

1. Nf3 {[%emt 0:00:00]} c5 {[%emt 0:00:22]} 2. c4 {[%emt 0:00:00]} Nc6 {[%emt 0:00:11]} 3. Nc3 {[%emt 0:00:12]} g6 {[%emt 0:00:12]} 4. g3 {[%emt 1:31:48]} Bg7 {[%emt 1:31:15]} 5. Bg2 {[%emt 0:00:30]} e6 {[%emt 0:00:30]} 6. O-O {[%emt 0:00:30]} Nge7 {[%emt 0:00:30]} 7. Rb1 {[%emt 0:00:30]} O-O {[%emt 0:00:30]} 8. a3 {[%emt 0:00:30]} d5 {[%emt 0:00:30]} 9. cxd5 {[%emt 0:00:30]} exd5 {[%emt 0:00:30]} 10. d3 {[%emt 0:00:30]} Bf5 {[%emt 0:00:30]} 11. Bf4 {[%emt 0:00:30]} a6 {[%emt 0:00:30]} 12. Qc1 {[%emt 0:00:30]} Rc8 {[%emt 0:00:30]} 13. Rd1 {[%emt 0:00:30]} Nd4 {[%emt 0:00:30]} 14. Bh6 {[%emt 0:00:30]} Nb3 {[%emt 0:00:30]} 15. Qf4 {[%emt 0:00:30]} f6 {[%emt 0:00:30]} 16. Bxg7 {[%emt 0:00:30]} Kxg7 {[%emt 0:00:30]} 17. e4 {[%emt 0:00:30]} g5 {[%emt 0:00:30]} 18. Nxg5 {[%emt 0:00:30]} fxg5 {[%emt 0:00:30]} 19. Qe5+ {[%emt 0:00:30]} Kg6 {[%emt 0:00:30]} 20. exf5+ {[%emt 0:00:30]} Rxf5 {[%emt 0:00:30]} 21. Qe3 {[%emt 0:00:30]} Rf6 {[%emt 0:00:30]} 22. Nxd5 {[%emt 0:00:30]} Nxd5 {[%emt 0:00:30]} 23. Qe4+ {[%emt 0:00:30]} Kg7 {[%emt 0:00:30]} 24. Qxd5 {[%emt 0:00:30]} Qxd5 {[%emt 0:00:30]} 25. Bxd5 {[%emt 0:00:30]} Na5 {[%emt 0:00:30]} 26. b4 {[%emt 0:00:30]} cxb4 {[%emt 0:00:30]} 27. axb4 {[%emt 0:00:30]} Nc6 {[%emt 0:00:30]} 28. b5 {[%emt 0:00:30]} axb5 {[%emt 0:00:30]} 29. Rxb5 {[%emt 0:00:30]} Nd8 {[%emt 0:00:30]} 30. Bxb7 {[%emt 0:00:30]} 1-0

[Event "WCCC G12 2019"]
[Site "Weifang"]
[Date "2019.08.29"]
[Round "8.6"]
[White "Velea, Sophie"]
[Black "Tang, Zoey"]
[Result "1-0"]
[ECO "A31"]
[WhiteElo "1533"]
[BlackElo "1866"]
[Annotator "NA"]
[PlyCount "65"]
[EventDate "2019.08.21"]
[EventType "swiss"]
[EventCountry "CHN"]
[SourceTitle "playchess.com"]
[Source "ChessBase"]
[SourceQuality "1"]
[TimeControl "40/5400+30:1800+30"]

1. e4 {[%emt 1:30:30]} c5 {[%emt 1:30:30]} 2. Nf3 {[%emt 0:00:30]} a6 {[%emt 0:00:30]} 3. c4 {[%emt 0:00:30]} e6 {[%emt 0:00:30]} 4. Nc3 {[%emt 0:00:30]} Qc7 {[%emt 0:00:30]} 5. d4 {[%emt 0:00:30]} cxd4 {[%emt 0:00:30]} 6. Nxd4 {[%emt 0:00:30]} Nf6 {[%emt 0:00:30]} 7. Be2 {[%emt 0:00:30]} Be7 {[%emt 0:00:30]} 8. O-O {[%emt 0:00:30]} d6 {[%emt 0:00:30]} 9. Be3 {[%emt 0:00:30]} Nbd7 {[%emt 0:00:30]} 10. Qd2 {[%emt 0:00:30]} b6 {[%emt 0:00:30]} 11. Rfc1 {[%emt 0:00:30]} Bb7 {[%emt 0:00:30]} 12. f3 {[%emt 0:00:30]} Rc8 {[%emt 0:00:30]} 13. a4 {[%emt 0:00:30]} O-O {[%emt 0:00:30]} 14. a5 {[%emt 0:00:30]} bxa5 {[%emt 0:00:30]} 15. Nb3 {[%emt 0:00:30]} Ba8 {[%emt 0:00:30]} 16. Nxa5 {[%emt 0:00:30]} Qb8 {[%emt 0:00:30]} 17. b4 {[%emt 0:00:30]} Bd8 {[%emt 0:00:30]} 18. b5 {[%emt 0:00:30]} axb5 {[%emt 0:00:30]} 19. Nxb5 {[%emt 0:00:30]} Bb6 {[%emt 0:00:30]} 20. Rcb1 {[%emt 0:00:30]} d5 {[%emt 0:00:30]} 21. exd5 {[%emt 0:00:30]} exd5 {[%emt 0:00:30]} 22. Kh1 {[%emt 0:00:30]} Bxe3 {[%emt 0:00:30]} 23. Qxe3 {[%emt 0:00:30]} Qe5 {[%emt 0:00:30]} 24. Qxe5 {[%emt 0:00:30]} Nxe5 {[%emt 0:00:30]} 25. Nd6 {[%emt 0:00:30]} Rb8 {[%emt 0:00:30]} 26. c5 {[%emt 0:00:30]} d4 {[%emt 0:00:30]} 27. f4 {[%emt 0:00:30]} Nc6 {[%emt 0:00:30]} 28. Nxc6 {[%emt 0:00:30]} Bxc6 {[%emt 0:00:30]} 29. Bf3 {[%emt 0:00:30]} Nd5 {[%emt 0:00:30]} 30. Rc1 {[%emt 0:00:30]} Rb2 {[%emt 0:00:30]} 31. Nc4 {[%emt 0:00:30]} Rbb8 {[%emt 0:00:30]} 32. Ne5 {[%emt 0:00:30]} Ba8 {[%emt 0:00:30]} 33. Nd7 {[%emt 0:00:30]} 1-0

[Event "WCCC G12 2019"]
[Site "Weifang"]
[Date "2019.08.29"]
[Round "8.7"]
[White "Ivanova, Dilyana"]
[Black "Racasa, Antonella Berthe"]
[Result "0-1"]
[ECO "B27"]
[WhiteElo "1673"]
[BlackElo "1380"]
[Annotator "NA"]
[PlyCount "86"]
[EventDate "2019.08.21"]
[EventType "swiss"]
[EventCountry "CHN"]
[SourceTitle "playchess.com"]
[Source "ChessBase"]
[SourceQuality "1"]
[TimeControl "40/5400+30:1800+30"]

1. e4 {[%emt 1:30:30]} g6 {[%emt 1:30:30]} 2. d4 {[%emt 0:00:30]} Bg7 {[%emt 0:00:30]} 3. Nf3 {[%emt 0:00:30]} c5 {[%emt 0:00:30]} 4. dxc5 {[%emt 0:00:30]} Qa5+ {[%emt 0:00:30]} 5. c3 {[%emt 0:00:30]} Qxc5 {[%emt 0:00:30]} 6. Na3 {[%emt 0:00:30]} Nf6 {[%emt 0:00:30]} 7. Be3 {[%emt 0:00:30]} Qa5 {[%emt 0:00:30]} 8. Nb5 {[%emt 0:00:30]} Nc6 {[%emt 0:00:30]} 9. Bc4 {[%emt 0:00:30]} O-O {[%emt 0:00:30]} 10. Bf4 {[%emt 0:00:30]} d6 {[%emt 0:00:30]} 11. O-O {[%emt 0:00:30]} Nxe4 {[%emt 0:00:30]} 12. Re1 {[%emt 0:00:30]} Nf6 {[%emt 0:00:30]} 13. Qb3 {[%emt 0:00:30]} Bd7 {[%emt 0:00:30]} 14. Ng5 {[%emt 0:00:30]} Be8 {[%emt 0:00:30]} 15. Qc2 {[%emt 0:00:30]} a6 {[%emt 0:00:30]} 16. b4 {[%emt 0:00:30]} Qd8 {[%emt 0:00:30]} 17. Nd4 {[%emt 0:00:30]} Nxd4 {[%emt 0:00:30]} 18. cxd4 {[%emt 0:00:30]} Nh5 {[%emt 0:00:30]} 19. Be3 {[%emt 0:00:30]} d5 {[%emt 0:00:30]} 20. Bb3 {[%emt 0:00:30]} Rc8 {[%emt 0:00:30]} 21. Qd2 {[%emt 0:00:30]} Bb5 {[%emt 0:00:30]} 22. Rac1 {[%emt 0:00:30]} Qd6 {[%emt 0:00:30]} 23. Rc5 {[%emt 0:00:30]} e6 {[%emt 0:00:30]} 24. Rec1 {[%emt 0:00:30]} Rxc5 {[%emt 0:00:30]} 25. Rxc5 {[%emt 0:00:30]} b6 {[%emt 0:00:30]} 26. Rc2 {[%emt 0:00:30]} Rd8 {[%emt 0:00:30]} 27. a3 {[%emt 0:00:30]} e5 {[%emt 0:00:30]} 28. g4 {[%emt 0:00:30]} exd4 {[%emt 0:00:30]} 29. Bxd4 {[%emt 0:00:30]} Bxd4 {[%emt 0:00:30]} 30. Qxd4 {[%emt 0:00:30]} Nf6 {[%emt 0:00:30]} 31. a4 {[%emt 0:00:30]} Bd7 {[%emt 0:00:30]} 32. h3 {[%emt 0:00:30]} Re8 {[%emt 0:00:30]} 33. Rc3 {[%emt 0:00:30]} h6 {[%emt 0:00:30]} 34. Nf3 {[%emt 0:00:30]} Re4 {[%emt 0:00:30]} 35. Qd2 {[%emt 0:00:30]} Kg7 {[%emt 0:00:30]} 36. Rd3 {[%emt 0:00:30]} Qxb4 {[%emt 0:00:30]} 37. Bxd5 {[%emt 0:00:30]} Nxd5 {[%emt 0:00:30]} 38. Rxd5 {[%emt 0:00:30]} Qxd2 {[%emt 0:00:30]} 39. Nxd2 {[%emt 0:00:30]} Re1+ {[%emt 0:00:30]} 40. Kh2 {[%emt 0:00:30]} Bxa4 {[%emt 0:00:30]} 41. Nc4 {[%emt 0:30:30]} Bb3 {[%emt 0:30:30]} 42. Rd4 {[%emt 0:00:30]} Bxc4 {[%emt 0:00:30]} 43. Rxc4 {[%emt 0:00:30]} a5 {[%emt 0:00:30]} 0-1

[Event "WCCC G12 2019"]
[Site "Weifang"]
[Date "2019.08.29"]
[Round "8.8"]
[White "Huang, Qianyi"]
[Black "Wei, Yaqing"]
[Result "1-0"]
[ECO "E43"]
[WhiteElo "1247"]
[BlackElo "1640"]
[Annotator "NA"]
[PlyCount "72"]
[EventDate "2019.08.21"]
[EventType "swiss"]
[EventCountry "CHN"]
[SourceTitle "playchess.com"]
[Source "ChessBase"]
[SourceQuality "1"]
[TimeControl "40/5400+30:1800+30"]

1. d4 {[%emt 1:30:30]} Nf6 {[%emt 1:30:30]} 2. c4 {[%emt 0:00:30]} e6 {[%emt 0:00:30]} 3. Nf3 {[%emt 0:00:30]} b6 {[%emt 0:00:30]} 4. e3 {[%emt 0:00:30]} Bb7 {[%emt 0:00:30]} 5. Be2 {[%emt 0:00:30]} Bb4+ {[%emt 0:00:30]} 6. Nc3 {[%emt 0:00:30]} O-O {[%emt 0:00:30]} 7. O-O {[%emt 0:00:30]} Bxc3 {[%emt 0:00:30]} 8. bxc3 {[%emt 0:00:30]} d6 {[%emt 0:00:30]} 9. Re1 {[%emt 0:00:30]} Ne4 {[%emt 0:00:30]} 10. Qc2 {[%emt 0:00:30]} f5 {[%emt 0:00:30]} 11. Nd2 {[%emt 0:00:30]} Nxd2 {[%emt 0:00:30]} 12. Qxd2 {[%emt 0:00:30]} Nd7 {[%emt 0:00:30]} 13. Bd3 {[%emt 0:00:30]} e5 {[%emt 0:00:30]} 14. f4 {[%emt 0:00:30]} Rf6 {[%emt 0:00:30]} 15. Qf2 {[%emt 0:00:30]} Qf8 {[%emt 0:00:30]} 16. Rb1 {[%emt 0:00:30]} Rb8 {[%emt 0:00:30]} 17. Rb2 {[%emt 0:00:30]} Qf7 {[%emt 0:00:30]} 18. Qf1 {[%emt 0:00:30]} Qh5 {[%emt 0:00:30]} 19. Be2 {[%emt 0:00:30]} Qh4 {[%emt 0:00:30]} 20. Qf2 {[%emt 0:00:30]} Qh6 {[%emt 0:00:30]} 21. c5 {[%emt 0:00:30]} Rg6 {[%emt 0:00:30]} 22. Bf1 {[%emt 0:00:30]} exd4 {[%emt 0:00:30]} 23. exd4 {[%emt 0:00:30]} Nf6 {[%emt 0:00:30]} 24. Qe2 {[%emt 0:00:30]} Ne4 {[%emt 0:00:30]} 25. cxb6 {[%emt 0:00:30]} cxb6 {[%emt 0:00:30]} 26. Qc4+ {[%emt 0:00:30]} Kh8 {[%emt 0:00:30]} 27. Qc7 {[%emt 0:00:30]} Rf8 {[%emt 0:00:30]} 28. Qxb7 {[%emt 0:00:30]} Qh4 {[%emt 0:00:30]} 29. g3 {[%emt 0:00:30]} Nxg3 {[%emt 0:00:30]} 30. Rg2 {[%emt 0:00:30]} Ne4 {[%emt 0:00:30]} 31. Ree2 {[%emt 0:00:30]} Nxc3 {[%emt 0:00:30]} 32. Rc2 {[%emt 0:00:30]} Qe1 {[%emt 0:00:30]} 33. Rxg6 {[%emt 0:00:30]} hxg6 {[%emt 0:00:30]} 34. Qf3 {[%emt 0:00:30]} Ne4 {[%emt 0:00:30]} 35. Kg2 {[%emt 0:00:30]} d5 {[%emt 0:00:30]} 36. Ba3 {[%emt 0:00:30]} Rd8 {[%emt 0:00:30]} 1-0

[Event "WCCC G12 2019"]
[Site "Weifang"]
[Date "2019.08.29"]
[Round "8.9"]
[White "Wang, Ellen"]
[Black "Sun, Chen"]
[Result "1/2-1/2"]
[ECO "B31"]
[WhiteElo "1867"]
[BlackElo "1529"]
[Annotator "NA"]
[PlyCount "53"]
[EventDate "2019.08.21"]
[EventType "swiss"]
[EventCountry "CHN"]
[SourceTitle "playchess.com"]
[Source "ChessBase"]
[SourceQuality "1"]
[TimeControl "40/5400+30:1800+30"]

1. e4 {[%emt 1:30:30]} c5 {[%emt 1:30:30]} 2. Nf3 {[%emt 0:00:30]} Nc6 {[%emt 0:00:30]} 3. Bb5 {[%emt 0:00:30]} g6 {[%emt 0:00:30]} 4. Bxc6 {[%emt 0:00:30]} bxc6 {[%emt 0:00:30]} 5. O-O {[%emt 0:00:30]} Bg7 {[%emt 0:00:30]} 6. c3 {[%emt 0:00:30]} Ba6 {[%emt 0:00:30]} 7. d3 {[%emt 0:00:30]} d6 {[%emt 0:00:30]} 8. Re1 {[%emt 0:00:30]} e6 {[%emt 0:00:30]} 9. d4 {[%emt 0:00:30]} cxd4 {[%emt 0:00:30]} 10. cxd4 {[%emt 0:00:30]} Ne7 {[%emt 0:00:30]} 11. d5 {[%emt 0:00:30]} O-O {[%emt 0:00:30]} 12. dxc6 {[%emt 0:00:30]} Nxc6 {[%emt 0:00:30]} 13. Nc3 {[%emt 0:00:30]} Rb8 {[%emt 0:00:30]} 14. Qa4 {[%emt 0:00:30]} Qc8 {[%emt 0:00:30]} 15. a3 {[%emt 0:00:30]} Re8 {[%emt 0:00:30]} 16. h3 {[%emt 0:00:30]} Ne5 {[%emt 0:00:30]} 17. Nxe5 {[%emt 0:00:30]} Bxe5 {[%emt 0:00:30]} 18. Be3 {[%emt 0:00:30]} Rxb2 {[%emt 0:00:30]} 19. Rac1 {[%emt 0:00:30]} Bd3 {[%emt 0:00:30]} 20. Bd4 {[%emt 0:00:30]} Bf4 {[%emt 0:00:30]} 21. Nd5 {[%emt 0:00:30]} Bxc1 {[%emt 0:00:30]} 22. Nf6+ {[%emt 0:00:30]} Kf8 {[%emt 0:00:30]} 23. Nxh7+ {[%emt 0:00:30]} Kg8 {[%emt 0:00:30]} 24. Nf6+ {[%emt 0:00:30]} Kf8 {[%emt 0:00:30]} 25. Nh7+ {[%emt 0:00:30]} Kg8 {[%emt 0:00:30]} 26. Nf6+ {[%emt 0:00:30]} Kf8 {[%emt 0:00:30]} 27. Nh7+ {[%emt 0:00:30]} 1/2-1/2

[Event "WCCC G12 2019"]
[Site "Weifang"]
[Date "2019.08.29"]
[Round "8.10"]
[White "Zakirova, Aisha"]
[Black "Zhu, Jenny"]
[Result "1/2-1/2"]
[ECO "D46"]
[WhiteElo "1595"]
[BlackElo "1516"]
[Annotator "NA"]
[PlyCount "49"]
[EventDate "2019.08.21"]
[EventType "swiss"]
[EventCountry "CHN"]
[SourceTitle "playchess.com"]
[Source "ChessBase"]
[SourceQuality "1"]
[TimeControl "40/5400+30:1800+30"]

1. d4 {[%emt 1:30:30]} d5 {[%emt 1:30:30]} 2. c4 {[%emt 0:00:30]} c6 {[%emt 0:00:30]} 3. Nc3 {[%emt 0:00:30]} Nf6 {[%emt 0:00:30]} 4. Nf3 {[%emt 0:00:30]} e6 {[%emt 0:00:30]} 5. e3 {[%emt 0:00:30]} Nbd7 {[%emt 0:00:30]} 6. Qc2 {[%emt 0:00:30]} Bd6 {[%emt 0:00:30]} 7. Bd3 {[%emt 0:00:30]} dxc4 {[%emt 0:00:30]} 8. Bxc4 {[%emt 0:00:30]} O-O {[%emt 0:00:30]} 9. O-O {[%emt 0:00:30]} b5 {[%emt 0:00:30]} 10. Be2 {[%emt 0:00:30]} Bb7 {[%emt 0:00:30]} 11. a3 {[%emt 0:00:30]} a6 {[%emt 0:00:30]} 12. b4 {[%emt 0:00:30]} a5 {[%emt 0:00:30]} 13. Rb1 {[%emt 0:00:30]} axb4 {[%emt 0:00:30]} 14. axb4 {[%emt 0:00:30]} Qe7 {[%emt 0:00:30]} 15. Qb3 {[%emt 0:00:30]} Nd5 {[%emt 0:00:30]} 16. e4 {[%emt 0:00:30]} Nxc3 {[%emt 0:00:30]} 17. Qxc3 {[%emt 0:00:30]} Rfc8 {[%emt 0:00:30]} 18. e5 {[%emt 0:00:30]} Bc7 {[%emt 0:00:30]} 19. Bg5 {[%emt 0:00:30]} Qe8 {[%emt 0:00:30]} 20. Nd2 {[%emt 0:00:30]} Nb6 {[%emt 0:00:30]} 21. Ne4 {[%emt 0:00:30]} Nd5 {[%emt 0:00:30]} 22. Qh3 {[%emt 0:00:30]} Ra2 {[%emt 0:00:30]} 23. Bd3 {[%emt 0:00:30]} g6 {[%emt 0:00:30]} 24. Rb3 {[%emt 0:00:30]} Rca8 {[%emt 0:00:30]} 25. Bb1 {[%emt 0:00:30]} 1/2-1/2

[Event "WCCC G12 2019"]
[Site "Weifang"]
[Date "2019.08.30"]
[Round "9.1"]
[White "Yan, Ruiyang"]
[Black "Velea, Sophie"]
[Result "1-0"]
[ECO "B75"]
[WhiteElo "1983"]
[BlackElo "1533"]
[Annotator "NA"]
[PlyCount "90"]
[EventDate "2019.08.21"]
[EventType "swiss"]
[EventCountry "CHN"]
[SourceTitle "playchess.com"]
[Source "ChessBase"]
[SourceQuality "1"]
[TimeControl "40/5400+30:1800+30"]

1. e4 {[%emt 1:30:30]} c5 {[%emt 1:30:30]} 2. Nf3 {[%emt 0:00:30]} d6 {[%emt 0:00:30]} 3. d4 {[%emt 0:00:30]} cxd4 {[%emt 0:00:30]} 4. Nxd4 {[%emt 0:00:30]} Nf6 {[%emt 0:00:30]} 5. Nc3 {[%emt 0:00:30]} g6 {[%emt 0:00:30]} 6. Be3 {[%emt 0:00:30]} Bg7 {[%emt 0:00:30]} 7. f3 {[%emt 0:00:30]} Nbd7 {[%emt 0:00:30]} 8. Bc4 {[%emt 0:00:30]} a6 {[%emt 0:00:30]} 9. Qd2 {[%emt 0:00:30]} h5 {[%emt 0:00:30]} 10. O-O-O {[%emt 0:00:30]} b5 {[%emt 0:00:30]} 11. Bb3 {[%emt 0:00:30]} Bb7 {[%emt 0:00:30]} 12. Kb1 {[%emt 0:00:30]} Nc5 {[%emt 0:00:30]} 13. h3 {[%emt 0:00:30]} Nxb3 {[%emt 0:00:30]} 14. cxb3 {[%emt 0:00:30]} Nd7 {[%emt 0:00:30]} 15. g4 {[%emt 0:00:30]} Nc5 {[%emt 0:00:30]} 16. Qf2 {[%emt 0:00:30]} Nd7 {[%emt 0:00:30]} 17. gxh5 {[%emt 0:00:30]} Rxh5 {[%emt 0:00:30]} 18. h4 {[%emt 0:00:30]} Ne5 {[%emt 0:00:30]} 19. Nce2 {[%emt 0:00:30]} Nc6 {[%emt 0:00:30]} 20. Ng3 {[%emt 0:00:30]} Rh8 {[%emt 0:00:30]} 21. h5 {[%emt 0:00:30]} Qd7 {[%emt 0:00:30]} 22. Nxc6 {[%emt 0:00:30]} Bxc6 {[%emt 0:00:30]} 23. Bb6 {[%emt 0:00:30]} a5 {[%emt 0:00:30]} 24. hxg6 {[%emt 0:00:30]} fxg6 {[%emt 0:00:30]} 25. Rxh8+ {[%emt 0:00:30]} Bxh8 {[%emt 0:00:30]} 26. Qh2 {[%emt 0:00:30]} Bg7 {[%emt 0:00:30]} 27. Qh7 {[%emt 0:00:30]} Kf7 {[%emt 0:00:30]} 28. Bd4 {[%emt 0:00:30]} Rg8 {[%emt 0:00:30]} 29. Ne2 {[%emt 0:00:30]} Qc8 {[%emt 0:00:30]} 30. Rg1 {[%emt 0:00:30]} e5 {[%emt 0:00:30]} 31. Qxg6+ {[%emt 0:00:30]} Ke7 {[%emt 0:00:30]} 32. Be3 {[%emt 0:00:30]} Qe6 {[%emt 0:00:30]} 33. Bg5+ {[%emt 0:00:30]} Kd7 {[%emt 0:00:30]} 34. Bf6 {[%emt 0:00:30]} Bxf6 {[%emt 0:00:30]} 35. Qxg8 {[%emt 0:00:30]} Qxg8 {[%emt 0:00:30]} 36. Rxg8 {[%emt 0:00:30]} d5 {[%emt 0:00:30]} 37. Nc3 {[%emt 0:00:30]} dxe4 {[%emt 0:00:30]} 38. fxe4 {[%emt 0:00:30]} b4 {[%emt 0:00:30]} 39. Nd5 {[%emt 0:00:30]} Bxd5 {[%emt 0:00:30]} 40. exd5 {[%emt 0:00:30]} Be7 {[%emt 0:00:30]} 41. Rg6 {[%emt 0:30:30]} Bd6 {[%emt 0:30:30]} 42. Re6 {[%emt 0:00:30]} Kc7 {[%emt 0:00:30]} 43. Kc2 {[%emt 0:00:30]} Kd7 {[%emt 0:00:30]} 44. Kd3 {[%emt 0:00:30]} Kc7 {[%emt 0:00:30]} 45. Kc4 {[%emt 0:00:30]} Kd7 {[%emt 0:00:30]} 1-0